[Event "Early-Titled-Tuesday-Blitz-May-14-2024"]
[Site "Chess.com"]
[Date "2024.05.14"]
[Round "5"]
[White "WilsonPalencia21"]
[Black "chito89"]
[Result "0-1"]
[WhiteElo "2596"]
[BlackElo "2802"]
[TimeControl "180+1"]
[EndTime "8:52:54 PDT"]
[Termination "chito89 won by resignation"]

1. d4 {[%clk 0:02:48.5]} 1... d5 {[%clk 0:02:59.2]} 2. c4 {[%clk 0:02:48.8]}
2... e6 {[%clk 0:02:59]} 3. Nf3 {[%clk 0:02:49.5]} 3... c6 {[%clk 0:02:58.6]} 4.
Nc3 {[%clk 0:02:47.9]} 4... dxc4 {[%clk 0:02:56]} 5. a4 {[%clk 0:02:47.2]} 5...
Bb4 {[%clk 0:02:51.1]} 6. e3 {[%clk 0:02:45.6]} 6... b5 {[%clk 0:02:50.8]} 7.
Bd2 {[%clk 0:02:45.3]} 7... a5 {[%clk 0:02:50.2]} 8. axb5 {[%clk 0:02:43.3]}
8... Bxc3 {[%clk 0:02:50.2]} 9. Bxc3 {[%clk 0:02:42.5]} 9... cxb5 {[%clk
0:02:50.7]} 10. d5 {[%clk 0:02:12.8]} 10... Nf6 {[%clk 0:02:47.6]} 11. dxe6
{[%clk 0:02:10.1]} 11... Qxd1+ {[%clk 0:02:48.5]} 12. Kxd1 {[%clk 0:02:08.8]}
12... Bxe6 {[%clk 0:02:47.1]} 13. Rxa5 {[%clk 0:01:59.9]} 13... Rxa5 {[%clk
0:02:46.8]} 14. Bxa5 {[%clk 0:01:59.8]} 14... Nc6 {[%clk 0:02:47.2]} 15. Be1
{[%clk 0:01:57.5]} 15... O-O {[%clk 0:02:43.7]} 16. Kc1 {[%clk 0:01:49.5]} 16...
Ra8 {[%clk 0:02:37.5]} 17. Kb1 {[%clk 0:01:49.4]} 17... Bf5+ {[%clk 0:02:36]}
0-1

[Event "Early-Titled-Tuesday-Blitz-May-14-2024"]
[Site "Chess.com"]
[Date "2024.05.14"]
[Round "5"]
[White "SidArun"]
[Black "Perecke"]
[Result "0-1"]
[WhiteElo "2355"]
[BlackElo "2573"]
[TimeControl "180+1"]
[EndTime "8:52:55 PDT"]
[Termination "Perecke won by resignation"]

1. d4 {[%clk 0:03:00.9]} 1... Nf6 {[%clk 0:02:54.5]} 2. Nc3 {[%clk 0:03:00.8]}
2... d5 {[%clk 0:02:53.2]} 3. Bf4 {[%clk 0:03:00.9]} 3... a6 {[%clk 0:02:52.8]}
4. e3 {[%clk 0:03:01.1]} 4... c5 {[%clk 0:02:53.2]} 5. dxc5 {[%clk 0:03:00.7]}
5... Nc6 {[%clk 0:02:53.6]} 6. a3 {[%clk 0:03:00]} 6... e5 {[%clk 0:02:47.7]} 7.
Bg5 {[%clk 0:02:59.7]} 7... d4 {[%clk 0:02:35.7]} 8. Ne4 {[%clk 0:02:56.7]} 8...
Be7 {[%clk 0:02:30.6]} 9. exd4 {[%clk 0:02:54.3]} 9... Nxe4 {[%clk 0:02:29.6]}
10. Bxe7 {[%clk 0:02:53.6]} 10... Qxe7 {[%clk 0:02:30.5]} 11. d5 {[%clk
0:02:53.1]} 11... Qxc5 {[%clk 0:02:29.4]} 12. Qf3 {[%clk 0:02:44.5]} 12... Qxd5
{[%clk 0:02:11.3]} 13. Rd1 {[%clk 0:02:41.2]} 13... Nd4 {[%clk 0:02:11.4]} 14.
Qd3 {[%clk 0:02:33.9]} 14... Bf5 {[%clk 0:02:07.5]} 15. c3 {[%clk 0:02:20.7]}
15... Nxf2 {[%clk 0:01:55.1]} 0-1

[Event "Early-Titled-Tuesday-Blitz-May-14-2024"]
[Site "Chess.com"]
[Date "2024.05.14"]
[Round "5"]
[White "HandKnit"]
[Black "NCchamp"]
[Result "1-0"]
[WhiteElo "2496"]
[BlackElo "2312"]
[TimeControl "180+1"]
[EndTime "8:53:12 PDT"]
[Termination "HandKnit won by resignation"]

1. e4 {[%clk 0:03:00.2]} 1... c6 {[%clk 0:02:59.4]} 2. d4 {[%clk 0:02:59.4]}
2... d5 {[%clk 0:03:00.3]} 3. Nc3 {[%clk 0:03:00]} 3... dxe4 {[%clk 0:03:00.8]}
4. Nxe4 {[%clk 0:03:00.9]} 4... Nf6 {[%clk 0:03:01.5]} 5. Ng3 {[%clk 0:02:58.7]}
5... g6 {[%clk 0:02:51.5]} 6. h4 {[%clk 0:02:53]} 6... Bg7 {[%clk 0:02:50.9]} 7.
h5 {[%clk 0:02:53.1]} 7... Bg4 {[%clk 0:02:48.2]} 8. Be2 {[%clk 0:02:52.8]} 8...
Bxe2 {[%clk 0:02:42]} 9. N1xe2 {[%clk 0:02:53.7]} 9... Nxh5 {[%clk 0:02:33]} 10.
Nxh5 {[%clk 0:02:51.5]} 10... gxh5 {[%clk 0:02:33.9]} 11. Rxh5 {[%clk
0:02:49.2]} 11... Nd7 {[%clk 0:02:34.5]} 12. Bh6 {[%clk 0:02:45.4]} 12... Bxh6
{[%clk 0:02:32.1]} 13. Rxh6 {[%clk 0:02:45.2]} 13... Nf6 {[%clk 0:02:32.1]} 14.
Qd3 {[%clk 0:02:42.4]} 14... Qa5+ {[%clk 0:02:31.6]} 15. c3 {[%clk 0:02:38.4]}
15... O-O-O {[%clk 0:02:30.9]} 16. Qh3+ {[%clk 0:02:29.9]} 16... Kb8 {[%clk
0:02:29.2]} 17. Qe3 {[%clk 0:02:14.5]} 17... Rhe8 {[%clk 0:02:12.1]} 18. Qe5+
{[%clk 0:02:05.1]} 18... Rd6 {[%clk 0:02:09.4]} 19. Qxa5 {[%clk 0:02:03.8]} 1-0

[Event "Early-Titled-Tuesday-Blitz-May-14-2024"]
[Site "Chess.com"]
[Date "2024.05.14"]
[Round "5"]
[White "Fh2411"]
[Black "NMChessToImpress"]
[Result "1-0"]
[WhiteElo "2557"]
[BlackElo "2272"]
[TimeControl "180+1"]
[EndTime "8:54:00 PDT"]
[Termination "Fh2411 won by resignation"]

1. d4 {[%clk 0:03:00.9]} 1... e6 {[%clk 0:03:00.2]} 2. Nf3 {[%clk 0:03:00.5]}
2... Nf6 {[%clk 0:03:00.7]} 3. Bf4 {[%clk 0:02:59.9]} 3... c5 {[%clk 0:03:00.3]}
4. e3 {[%clk 0:03:00.3]} 4... b6 {[%clk 0:02:58.7]} 5. Nbd2 {[%clk 0:02:59.7]}
5... Bb7 {[%clk 0:02:58.2]} 6. Nc4 {[%clk 0:02:59.8]} 6... d5 {[%clk 0:02:48]}
7. Nce5 {[%clk 0:02:59.3]} 7... a6 {[%clk 0:02:34.6]} 8. Ng5 {[%clk 0:02:58.6]}
8... Qc8 {[%clk 0:02:16.8]} 9. Nexf7 {[%clk 0:02:40]} 9... Rg8 {[%clk
0:02:14.7]} 10. Ne5 {[%clk 0:02:11.3]} 10... Nbd7 {[%clk 0:02:07.6]} 11. Bd3
{[%clk 0:02:06.3]} 11... c4 {[%clk 0:01:46.9]} 12. Bxh7 {[%clk 0:01:59.7]} 12...
Nxh7 {[%clk 0:01:41.1]} 13. Qh5+ {[%clk 0:01:54.6]} 13... Kd8 {[%clk 0:01:28.5]}
14. Nxe6+ {[%clk 0:01:40.4]} 1-0

[Event "Early-Titled-Tuesday-Blitz-May-14-2024"]
[Site "Chess.com"]
[Date "2024.05.14"]
[Round "5"]
[White "BelyakovBogdan"]
[Black "InitiatingASC"]
[Result "1-0"]
[WhiteElo "2595"]
[BlackElo "2422"]
[TimeControl "180+1"]
[EndTime "8:54:05 PDT"]
[Termination "BelyakovBogdan won by checkmate"]

1. e4 {[%clk 0:03:00.9]} 1... c5 {[%clk 0:02:56.7]} 2. Nf3 {[%clk 0:03:00.1]}
2... Nc6 {[%clk 0:02:56.9]} 3. Bb5 {[%clk 0:02:59.2]} 3... Nf6 {[%clk
0:02:56.6]} 4. e5 {[%clk 0:02:57.5]} 4... Nd5 {[%clk 0:02:56.9]} 5. O-O {[%clk
0:02:49.1]} 5... Nc7 {[%clk 0:02:55.1]} 6. Bxc6 {[%clk 0:02:44.3]} 6... bxc6
{[%clk 0:02:54.9]} 7. d4 {[%clk 0:02:43.1]} 7... Ne6 {[%clk 0:02:51.9]} 8. Nc3
{[%clk 0:02:37.8]} 8... cxd4 {[%clk 0:02:43.4]} 9. Nxd4 {[%clk 0:02:38.7]} 9...
Nxd4 {[%clk 0:02:40.3]} 10. Qxd4 {[%clk 0:02:37.7]} 10... Qb6 {[%clk 0:02:37.2]}
11. Qh4 {[%clk 0:02:36.5]} 11... Ba6 {[%clk 0:02:31.8]} 12. Re1 {[%clk
0:02:35.4]} 12... O-O-O {[%clk 0:02:23.3]} 13. Be3 {[%clk 0:02:28.2]} 13... Qxb2
{[%clk 0:02:20.9]} 14. Qa4 {[%clk 0:02:14.2]} 14... Bb7 {[%clk 0:01:47.8]} 15.
Qxa7 {[%clk 0:02:10.8]} 15... Qxc3 {[%clk 0:01:13.5]} 16. Reb1 {[%clk
0:01:54.1]} 16... Qxa1 {[%clk 0:01:13.2]} 17. Qxb7# {[%clk 0:01:53.2]} 1-0

[Event "Early-Titled-Tuesday-Blitz-May-14-2024"]
[Site "Chess.com"]
[Date "2024.05.14"]
[Round "5"]
[White "ChainedDowntohell"]
[Black "NewYearGirl"]
[Result "1-0"]
[WhiteElo "2593"]
[BlackElo "2392"]
[TimeControl "180+1"]
[EndTime "8:55:00 PDT"]
[Termination "ChainedDowntohell won by resignation"]

1. d4 {[%clk 0:03:00.9]} 1... Nf6 {[%clk 0:02:59.6]} 2. c4 {[%clk 0:03:00.1]}
2... c5 {[%clk 0:03:00]} 3. d5 {[%clk 0:02:56.4]} 3... b5 {[%clk 0:03:00.1]} 4.
Nf3 {[%clk 0:02:52.1]} 4... e6 {[%clk 0:02:56.5]} 5. dxe6 {[%clk 0:02:37.1]}
5... fxe6 {[%clk 0:02:56.3]} 6. Nc3 {[%clk 0:02:33.6]} 6... b4 {[%clk
0:02:55.1]} 7. Na4 {[%clk 0:02:31.6]} 7... Bb7 {[%clk 0:02:52.2]} 8. g3 {[%clk
0:02:29.8]} 8... Be7 {[%clk 0:02:44.5]} 9. Bg2 {[%clk 0:02:29.6]} 9... O-O
{[%clk 0:02:44.7]} 10. O-O {[%clk 0:02:29.6]} 10... d6 {[%clk 0:02:44.2]} 11. a3
{[%clk 0:02:29.4]} 11... a5 {[%clk 0:02:42]} 12. Bf4 {[%clk 0:02:25.1]} 12... e5
{[%clk 0:02:33.6]} 13. Bg5 {[%clk 0:02:21.6]} 13... Nc6 {[%clk 0:02:27.2]} 14.
Nh4 {[%clk 0:02:18.4]} 14... e4 {[%clk 0:02:13.5]} 15. Nf5 {[%clk 0:02:17.1]}
15... Nd4 {[%clk 0:01:57.6]} 16. Nxd4 {[%clk 0:02:13.8]} 16... cxd4 {[%clk
0:01:57.6]} 17. Qxd4 {[%clk 0:02:14.3]} 17... Bc6 {[%clk 0:01:57.8]} 18. Nb6
{[%clk 0:02:13.4]} 18... Ra6 {[%clk 0:01:53.7]} 19. c5 {[%clk 0:01:58.7]} 19...
dxc5 {[%clk 0:01:48.2]} 20. Qc4+ {[%clk 0:01:58.4]} 20... Kh8 {[%clk 0:01:14]}
21. Qxa6 {[%clk 0:01:53.7]} 21... Qc7 {[%clk 0:01:12]} 22. Bf4 {[%clk
0:01:48.4]} 22... Qb8 {[%clk 0:01:07.5]} 23. Bxb8 {[%clk 0:01:28.5]} 1-0

[Event "Early-Titled-Tuesday-Blitz-May-14-2024"]
[Site "Chess.com"]
[Date "2024.05.14"]
[Round "5"]
[White "Oleksandr_Bortnyk"]
[Black "Der_Balak_3Halak"]
[Result "1-0"]
[WhiteElo "3046"]
[BlackElo "2396"]
[TimeControl "180+1"]
[EndTime "8:55:02 PDT"]
[Termination "Oleksandr_Bortnyk won by resignation"]

1. e4 {[%clk 0:03:00.9]} 1... c5 {[%clk 0:02:59.5]} 2. c3 {[%clk 0:03:01]} 2...
Nf6 {[%clk 0:02:57.3]} 3. e5 {[%clk 0:03:01.6]} 3... Nd5 {[%clk 0:02:57.8]} 4.
d4 {[%clk 0:03:02.5]} 4... cxd4 {[%clk 0:02:58.3]} 5. Nf3 {[%clk 0:03:03.4]}
5... Nc6 {[%clk 0:02:57.8]} 6. cxd4 {[%clk 0:03:04.3]} 6... d6 {[%clk
0:02:56.8]} 7. Bc4 {[%clk 0:03:04.9]} 7... Nb6 {[%clk 0:02:55.8]} 8. Bb5 {[%clk
0:03:05.2]} 8... dxe5 {[%clk 0:02:48.9]} 9. Nxe5 {[%clk 0:03:06.1]} 9... Bd7
{[%clk 0:02:49.2]} 10. Nxd7 {[%clk 0:03:06.3]} 10... Qxd7 {[%clk 0:02:49.5]} 11.
Nc3 {[%clk 0:03:06.9]} 11... e6 {[%clk 0:02:48.7]} 12. O-O {[%clk 0:03:07.1]}
12... a6 {[%clk 0:02:44.9]} 13. Bxc6 {[%clk 0:03:07.4]} 13... Qxc6 {[%clk
0:02:45.5]} 14. Qg4 {[%clk 0:03:07.8]} 14... Nd5 {[%clk 0:02:14.1]} 15. Nxd5
{[%clk 0:03:01.7]} 15... Qxd5 {[%clk 0:02:15]} 16. Bf4 {[%clk 0:03:01.9]} 16...
f6 {[%clk 0:01:43.8]} 17. Rac1 {[%clk 0:03:00.4]} 17... Rd8 {[%clk 0:01:13.3]}
18. Rc7 {[%clk 0:02:59.7]} 18... g6 {[%clk 0:00:58.9]} 19. Re1 {[%clk
0:02:55.2]} 19... f5 {[%clk 0:00:58.8]} 20. Qg5 {[%clk 0:02:05.9]} 20... Bd6
{[%clk 0:00:54.3]} 21. Qf6 {[%clk 0:01:48.4]} 21... Bxc7 {[%clk 0:00:39]} 22.
Rxe6+ {[%clk 0:01:46.8]} 22... Kd7 {[%clk 0:00:38]} 23. Qe7+ {[%clk 0:01:46.8]}
1-0

[Event "Early-Titled-Tuesday-Blitz-May-14-2024"]
[Site "Chess.com"]
[Date "2024.05.14"]
[Round "5"]
[White "vladislavkovalev"]
[Black "Tolyanius"]
[Result "1-0"]
[WhiteElo "2852"]
[BlackElo "2664"]
[TimeControl "180+1"]
[EndTime "8:55:08 PDT"]
[Termination "vladislavkovalev won by resignation"]

1. e4 {[%clk 0:03:00.9]} 1... e5 {[%clk 0:03:00.2]} 2. Nf3 {[%clk 0:03:00.8]}
2... Nc6 {[%clk 0:03:00.9]} 3. Bb5 {[%clk 0:03:01.1]} 3... Nge7 {[%clk
0:03:01.5]} 4. O-O {[%clk 0:03:00.9]} 4... a6 {[%clk 0:03:02.2]} 5. Ba4 {[%clk
0:03:00.7]} 5... d6 {[%clk 0:03:03]} 6. c3 {[%clk 0:02:52.4]} 6... Bd7 {[%clk
0:03:03.4]} 7. d4 {[%clk 0:02:52.7]} 7... Ng6 {[%clk 0:03:04.1]} 8. Re1 {[%clk
0:02:52.3]} 8... Be7 {[%clk 0:03:04.7]} 9. d5 {[%clk 0:02:43.8]} 9... Nb8 {[%clk
0:03:04.5]} 10. c4 {[%clk 0:02:44.5]} 10... h6 {[%clk 0:03:04]} 11. Nc3 {[%clk
0:02:44.9]} 11... Bg5 {[%clk 0:03:04.6]} 12. b4 {[%clk 0:02:40.4]} 12... a5
{[%clk 0:02:44.9]} 13. a3 {[%clk 0:02:40.1]} 13... Bxc1 {[%clk 0:02:34.8]} 14.
Qxc1 {[%clk 0:02:37]} 14... O-O {[%clk 0:02:35.4]} 15. c5 {[%clk 0:02:36.1]}
15... axb4 {[%clk 0:02:28.2]} 16. axb4 {[%clk 0:02:37]} 16... Na6 {[%clk
0:02:27.4]} 17. Bxd7 {[%clk 0:01:43]} 17... Qxd7 {[%clk 0:02:26.6]} 18. c6
{[%clk 0:01:43.7]} 18... bxc6 {[%clk 0:01:50]} 19. dxc6 {[%clk 0:01:44.6]} 19...
Qc8 {[%clk 0:01:21.8]} 20. Nd5 {[%clk 0:01:44.5]} 20... f5 {[%clk 0:01:08.2]}
21. Nh4 {[%clk 0:01:44.5]} 1-0

[Event "Early-Titled-Tuesday-Blitz-May-14-2024"]
[Site "Chess.com"]
[Date "2024.05.14"]
[Round "5"]
[White "ATM622"]
[Black "SoCalJuniorChess"]
[Result "1-0"]
[WhiteElo "2553"]
[BlackElo "2220"]
[TimeControl "180+1"]
[EndTime "8:55:16 PDT"]
[Termination "ATM622 won by resignation"]

1. d4 {[%clk 0:03:00.9]} 1... Nf6 {[%clk 0:02:59.2]} 2. c4 {[%clk 0:03:00.9]}
2... e5 {[%clk 0:02:59.8]} 3. dxe5 {[%clk 0:03:00]} 3... Ng4 {[%clk 0:03:00.5]}
4. Nf3 {[%clk 0:03:00.3]} 4... Bc5 {[%clk 0:02:59.2]} 5. e3 {[%clk 0:03:00.7]}
5... Nc6 {[%clk 0:02:59.8]} 6. Nc3 {[%clk 0:03:00.4]} 6... O-O {[%clk
0:02:55.2]} 7. Be2 {[%clk 0:02:59.4]} 7... Ncxe5 {[%clk 0:02:54.7]} 8. Nxe5
{[%clk 0:02:56.8]} 8... Nxe5 {[%clk 0:02:54.5]} 9. O-O {[%clk 0:02:56.8]} 9...
Re8 {[%clk 0:02:52.3]} 10. a3 {[%clk 0:02:43.1]} 10... a5 {[%clk 0:02:51.9]} 11.
Ne4 {[%clk 0:02:41.6]} 11... d6 {[%clk 0:02:48.7]} 12. b3 {[%clk 0:02:39.5]}
12... Bf5 {[%clk 0:02:48]} 13. Ng3 {[%clk 0:02:38.4]} 13... Bg6 {[%clk
0:02:35.2]} 14. f4 {[%clk 0:02:31.9]} 14... Qf6 {[%clk 0:02:06.6]} 15. Ra2
{[%clk 0:02:16.4]} 15... Bb1 {[%clk 0:01:36]} 16. fxe5 {[%clk 0:02:15]} 16...
Qxe5 {[%clk 0:01:31.2]} 17. Rb2 {[%clk 0:02:15.5]} 17... Bxe3+ {[%clk
0:01:29.1]} 18. Bxe3 {[%clk 0:02:14.5]} 18... Qxb2 {[%clk 0:01:26.8]} 19. Bd4
{[%clk 0:02:07.3]} 19... Qxa3 {[%clk 0:01:13.1]} 20. Qxb1 {[%clk 0:02:06.8]}
20... a4 {[%clk 0:01:04.5]} 21. bxa4 {[%clk 0:02:01.9]} 21... Rxa4 {[%clk
0:01:03.7]} 22. Qxb7 {[%clk 0:02:00]} 22... Raa8 {[%clk 0:00:27.7]} 23. Qxc7
{[%clk 0:01:59.4]} 23... Rf8 {[%clk 0:00:28.3]} 24. Nf5 {[%clk 0:01:57.3]} 24...
Rac8 {[%clk 0:00:19.7]} 25. Ne7+ {[%clk 0:01:57.4]} 1-0

[Event "Early-Titled-Tuesday-Blitz-May-14-2024"]
[Site "Chess.com"]
[Date "2024.05.14"]
[Round "5"]
[White "romulocardoso"]
[Black "maurovargas01"]
[Result "1-0"]
[WhiteElo "2312"]
[BlackElo "1958"]
[TimeControl "180+1"]
[EndTime "8:55:26 PDT"]
[Termination "romulocardoso won by resignation"]

1. e4 {[%clk 0:03:00.9]} 1... c5 {[%clk 0:02:57.9]} 2. Nf3 {[%clk 0:03:00.9]}
2... d6 {[%clk 0:02:57.1]} 3. d4 {[%clk 0:03:01.4]} 3... cxd4 {[%clk 0:02:56.9]}
4. Nxd4 {[%clk 0:03:02.3]} 4... Nf6 {[%clk 0:02:56.2]} 5. Nc3 {[%clk 0:03:02.5]}
5... Nc6 {[%clk 0:02:56]} 6. f3 {[%clk 0:03:00.3]} 6... g6 {[%clk 0:02:54.9]} 7.
Be3 {[%clk 0:02:59.9]} 7... Bg7 {[%clk 0:02:54.3]} 8. Qd2 {[%clk 0:03:00.2]}
8... h6 {[%clk 0:02:52.3]} 9. Bc4 {[%clk 0:03:00.1]} 9... g5 {[%clk 0:02:49.5]}
10. O-O-O {[%clk 0:02:59.7]} 10... Ne5 {[%clk 0:02:47.7]} 11. Bb3 {[%clk
0:02:59.3]} 11... Bd7 {[%clk 0:02:47.5]} 12. Kb1 {[%clk 0:02:58]} 12... Rc8
{[%clk 0:02:46.9]} 13. h4 {[%clk 0:02:58.2]} 13... g4 {[%clk 0:02:36.5]} 14. f4
{[%clk 0:02:52.5]} 14... Nc4 {[%clk 0:02:35.2]} 15. Bxc4 {[%clk 0:02:52.9]}
15... Rxc4 {[%clk 0:02:34.8]} 16. e5 {[%clk 0:02:53.4]} 16... Nh5 {[%clk
0:02:05.1]} 17. Qd3 {[%clk 0:02:51.4]} 17... Qc8 {[%clk 0:01:46.2]} 18. e6
{[%clk 0:02:51]} 18... Rxd4 {[%clk 0:01:33.9]} 19. Bxd4 {[%clk 0:02:50.8]} 19...
Bxe6 {[%clk 0:01:31.8]} 20. Qb5+ {[%clk 0:02:30.4]} 20... Bd7 {[%clk 0:01:26.8]}
21. Qxh5 {[%clk 0:02:31]} 21... Qc4 {[%clk 0:01:17.4]} 22. Bxg7 {[%clk
0:02:27.8]} 22... Rg8 {[%clk 0:01:11.8]} 23. Qxh6 {[%clk 0:02:23.3]} 23... b5
{[%clk 0:00:57.5]} 24. Qh7 {[%clk 0:02:22.2]} 24... Rxg7 {[%clk 0:00:50.9]} 25.
Qxg7 {[%clk 0:02:19.5]} 25... Be6 {[%clk 0:00:49.2]} 26. Qd4 {[%clk 0:02:19.6]}
26... Qc7 {[%clk 0:00:34.6]} 27. h5 {[%clk 0:02:19.2]} 27... a6 {[%clk
0:00:26.6]} 28. h6 {[%clk 0:02:19.4]} 28... a5 {[%clk 0:00:20.4]} 29. h7 {[%clk
0:02:19.8]} 29... b4 {[%clk 0:00:20.1]} 30. h8=Q+ {[%clk 0:02:20.7]} 30... Kd7
{[%clk 0:00:19.9]} 31. Ne4 {[%clk 0:02:21]} 31... Qc6 {[%clk 0:00:15.9]} 32.
Nc5+ {[%clk 0:02:21]} 32... Qxc5 {[%clk 0:00:14.1]} 33. Qxc5 {[%clk 0:02:21.2]}
1-0

[Event "Early-Titled-Tuesday-Blitz-May-14-2024"]
[Site "Chess.com"]
[Date "2024.05.14"]
[Round "5"]
[White "rhwr"]
[Black "dianamirza"]
[Result "1-0"]
[WhiteElo "2332"]
[BlackElo "1954"]
[TimeControl "180+1"]
[EndTime "8:55:30 PDT"]
[Termination "rhwr won by resignation"]

1. e4 {[%clk 0:03:00.9]} 1... c5 {[%clk 0:02:50.5]} 2. Be2 {[%clk 0:02:59.3]}
2... e6 {[%clk 0:02:46]} 3. f4 {[%clk 0:02:59.2]} 3... d5 {[%clk 0:02:46]} 4. d3
{[%clk 0:02:58]} 4... Nc6 {[%clk 0:02:44.3]} 5. Nf3 {[%clk 0:02:56.4]} 5... Nf6
{[%clk 0:02:42]} 6. e5 {[%clk 0:02:55.1]} 6... Nd7 {[%clk 0:02:42.3]} 7. O-O
{[%clk 0:02:54.4]} 7... Be7 {[%clk 0:02:42.9]} 8. c3 {[%clk 0:02:53.9]} 8... O-O
{[%clk 0:02:43.4]} 9. d4 {[%clk 0:02:50.6]} 9... cxd4 {[%clk 0:02:39.8]} 10.
cxd4 {[%clk 0:02:50.4]} 10... f6 {[%clk 0:02:36.5]} 11. Nc3 {[%clk 0:02:49.2]}
11... fxe5 {[%clk 0:02:35.9]} 12. fxe5 {[%clk 0:02:49.6]} 12... Qb6 {[%clk
0:02:27.9]} 13. Kh1 {[%clk 0:02:47.7]} 13... Rxf3 {[%clk 0:02:13.9]} 14. Bxf3
{[%clk 0:02:36.7]} 14... Nxd4 {[%clk 0:02:14.1]} 15. Bxd5 {[%clk 0:02:36.8]}
15... Nxe5 {[%clk 0:02:06.5]} 16. Be4 {[%clk 0:02:24.6]} 16... Nf5 {[%clk
0:01:57.7]} 17. Bxf5 {[%clk 0:01:41.4]} 17... exf5 {[%clk 0:01:57]} 18. Nd5
{[%clk 0:01:37.3]} 18... Qd8 {[%clk 0:01:34.3]} 19. Nxe7+ {[%clk 0:01:34.1]}
19... Qxe7 {[%clk 0:01:31.1]} 20. Qd5+ {[%clk 0:01:33.2]} 20... Be6 {[%clk
0:01:28.5]} 21. Qxe5 {[%clk 0:01:27.1]} 21... Rd8 {[%clk 0:01:10.8]} 22. Bf4
{[%clk 0:01:19.5]} 22... g5 {[%clk 0:00:40.6]} 1-0

[Event "Early-Titled-Tuesday-Blitz-May-14-2024"]
[Site "Chess.com"]
[Date "2024.05.14"]
[Round "5"]
[White "crazy_but_lazy"]
[Black "Rodalquilar"]
[Result "0-1"]
[WhiteElo "2679"]
[BlackElo "2878"]
[TimeControl "180+1"]
[EndTime "8:55:33 PDT"]
[Termination "Rodalquilar won by resignation"]

1. Nf3 {[%clk 0:02:39.4]} 1... d5 {[%clk 0:03:00.1]} 2. g3 {[%clk 0:02:38.3]}
2... Nf6 {[%clk 0:02:57.7]} 3. Bg2 {[%clk 0:02:38]} 3... Bf5 {[%clk 0:02:58]} 4.
c4 {[%clk 0:02:33.8]} 4... e6 {[%clk 0:02:52.7]} 5. O-O {[%clk 0:02:31]} 5... c6
{[%clk 0:02:52.5]} 6. d3 {[%clk 0:02:26.6]} 6... dxc4 {[%clk 0:02:49.4]} 7. dxc4
{[%clk 0:02:26.7]} 7... Nbd7 {[%clk 0:02:49.8]} 8. Nc3 {[%clk 0:02:26.2]} 8...
Be7 {[%clk 0:02:48.8]} 9. Nh4 {[%clk 0:02:10]} 9... Bg6 {[%clk 0:02:47.8]} 10.
Bf4 {[%clk 0:02:00.1]} 10... O-O {[%clk 0:02:47]} 11. Nxg6 {[%clk 0:01:59.6]}
11... hxg6 {[%clk 0:02:47]} 12. Qc2 {[%clk 0:01:51.7]} 12... Qa5 {[%clk
0:02:33.9]} 13. a3 {[%clk 0:01:47.2]} 13... Qf5 {[%clk 0:02:33.7]} 14. e4 {[%clk
0:01:23.4]} 14... Qh5 {[%clk 0:02:33.5]} 15. h3 {[%clk 0:01:23]} 15... g5 {[%clk
0:02:30.8]} 16. g4 {[%clk 0:01:05.7]} 16... Qg6 {[%clk 0:02:14.1]} 17. Bg3
{[%clk 0:00:53.1]} 17... a5 {[%clk 0:02:11.9]} 18. Rae1 {[%clk 0:00:46]} 18...
Bc5 {[%clk 0:02:08]} 19. Na4 {[%clk 0:00:41.9]} 19... Bd4 {[%clk 0:02:06.5]} 20.
Rd1 {[%clk 0:00:16.2]} 20... e5 {[%clk 0:02:03.7]} 21. Kh2 {[%clk 0:00:14.4]}
21... Rfe8 {[%clk 0:02:02.9]} 22. Nc3 {[%clk 0:00:13.8]} 22... Nf8 {[%clk
0:02:02.9]} 23. Ne2 {[%clk 0:00:13]} 23... Bc5 {[%clk 0:01:59.7]} 24. Qc3 {[%clk
0:00:13.5]} 24... Nxe4 {[%clk 0:01:53.4]} 25. Qc2 {[%clk 0:00:13.5]} 25... Nxg3
{[%clk 0:01:51.7]} 26. Qxg6 {[%clk 0:00:13.3]} 26... Nxf1+ {[%clk 0:01:52.1]}
0-1

[Event "Early-Titled-Tuesday-Blitz-May-14-2024"]
[Site "Chess.com"]
[Date "2024.05.14"]
[Round "5"]
[White "PeshkaCh"]
[Black "Sadykov_Ramil"]
[Result "1-0"]
[WhiteElo "2877"]
[BlackElo "2611"]
[TimeControl "180+1"]
[EndTime "8:55:41 PDT"]
[Termination "PeshkaCh won by resignation"]

1. Nf3 {[%clk 0:03:00.9]} 1... Nf6 {[%clk 0:02:59.1]} 2. d4 {[%clk 0:03:01.4]}
2... d5 {[%clk 0:02:59]} 3. c4 {[%clk 0:03:01.5]} 3... e6 {[%clk 0:02:59.1]} 4.
Nc3 {[%clk 0:03:02.2]} 4... Be7 {[%clk 0:02:58.6]} 5. Bg5 {[%clk 0:03:02.8]}
5... h6 {[%clk 0:02:57.3]} 6. Bh4 {[%clk 0:03:02.5]} 6... O-O {[%clk 0:02:57.2]}
7. e3 {[%clk 0:03:03]} 7... Ne4 {[%clk 0:02:57.9]} 8. Bxe7 {[%clk 0:03:02.7]}
8... Qxe7 {[%clk 0:02:58.8]} 9. cxd5 {[%clk 0:03:02.3]} 9... Nxc3 {[%clk
0:02:58.7]} 10. bxc3 {[%clk 0:03:03.2]} 10... exd5 {[%clk 0:02:59.3]} 11. Be2
{[%clk 0:02:58.6]} 11... c5 {[%clk 0:02:55.9]} 12. O-O {[%clk 0:02:58.6]} 12...
b6 {[%clk 0:02:55.4]} 13. Ne5 {[%clk 0:02:58.3]} 13... Be6 {[%clk 0:02:52.6]}
14. f4 {[%clk 0:02:51.3]} 14... Bf5 {[%clk 0:02:37.7]} 15. Bf3 {[%clk
0:02:45.8]} 15... Rd8 {[%clk 0:02:21.4]} 16. g4 {[%clk 0:02:44.1]} 16... Be4
{[%clk 0:02:19.8]} 17. Bxe4 {[%clk 0:02:44.5]} 17... dxe4 {[%clk 0:02:18.9]} 18.
g5 {[%clk 0:02:45.2]} 18... Rd6 {[%clk 0:02:08.8]} 19. Kh1 {[%clk 0:02:24.2]}
19... Nd7 {[%clk 0:02:04.9]} 20. Qg4 {[%clk 0:02:10.2]} 20... cxd4 {[%clk
0:01:46]} 21. cxd4 {[%clk 0:02:08.9]} 21... Rd8 {[%clk 0:01:28.8]} 22. gxh6
{[%clk 0:02:03.1]} 22... Rxh6 {[%clk 0:01:28.4]} 23. Rg1 {[%clk 0:02:03.7]}
23... g6 {[%clk 0:01:05.3]} 24. Nc6 {[%clk 0:02:03.8]} 24... Qf6 {[%clk
0:00:46.5]} 25. Nxd8 {[%clk 0:02:03.5]} 25... Qxd8 {[%clk 0:00:47.4]} 26. Qg5
{[%clk 0:02:04.2]} 26... Qf8 {[%clk 0:00:43.5]} 27. Rac1 {[%clk 0:01:59.7]}
27... Kg7 {[%clk 0:00:31.9]} 28. Rc7 {[%clk 0:01:46.8]} 28... Qd6 {[%clk
0:00:31.1]} 29. Rxa7 {[%clk 0:01:39.5]} 29... Nf6 {[%clk 0:00:31.1]} 30. Rxf7+
{[%clk 0:01:36.1]} 1-0